bitfinex-derivatives/quotes_SOLF0:USTF0_20241222
["timestamp","ask_amount","ask_price","bid_price","bid_amount"]
[1734896674430,2.8004,178.68,178.58,4.58]
[1734896674824,4.58,178.74,178.58,4.58]
[1734896675520,2.8,178.71,178.65,2.8007]
[1734896675724,4.58,178.74,178.58,4.58]
[1734896676025,2.7998,178.72,178.67,2.8005]
[1734896676224,2.7998,178.72,178.58,4.58]
[1734896676425,4.58,178.74,178.6,35.22537534]
[1734896676625,2.7999,178.72,178.61,1.6069]
[1734896677020,4.58,178.76,178.63,35.22537534]
[1734896677224,98.00537534,178.78,178.64,3.3378]
[1734896677424,93.42537534,178.78,178.64,3.3378]
[1734896677630,93.42537534,178.78,178.64,7.9178]
[1734896677826,39.80537534,178.78,178.64,7.9178]
[1734896678325,4.58,178.79,178.71,2.7998]
[1734896678530,4.58,178.8,178.71,2.7998]
[1734896679224,35.22537534,178.86,178.68,35.22537534]
[1734896679429,35.22537534,178.8,178.69,1.6364]
[1734896679631,2.7996,178.73,178.65,3.2531]
[1734896679830,35.22537534,178.77,178.67,2.8005]
[1734896680233,2.7998,178.72,178.67,2.8005]
[1734896680727,35.22537534,178.74,178.65,3.2531]
[1734896681730,35.22537534,178.77,178.65,3.2531]
[1734896682928,2.8,178.71,178.67,2.8005]
[1734896683132,35.22537534,178.74,178.61,1.6364]
[1734896683426,35.22537534,178.71,178.59,3.4847]
[1734896683627,35.22537534,178.71,178.6,2.8016]
[1734896684035,2.8011,178.64,178.6,2.8016]
[1734896685039,2.8008,178.65,178.57,1.7378]
[1734896685335,35.22537534,178.71,178.57,1.7378]
[1734896685730,2.8005,178.67,178.57,1.7378]
[1734896685928,4.58,178.73,178.57,1.7378]
[1734896686124,2.8002,178.7,178.59,35.22537534]
[1734896686329,4.58,178.73,178.6,4.58]
[1734896686726,2.8,178.71,178.66,2.8007]
[1734896687440,2.8001,178.7,178.66,2.8007]
[1734896690237,4.58,178.73,178.64,2.8008]
[1734896690429,4.58,178.73,178.57,1.7378]
[1734896690632,2.8006,178.67,178.62,2.8012]
[1734896691034,2.8006,178.67,178.58,4.58]
[1734896691326,2.8007,178.66,178.58,4.58]
[1734896691736,2.8003,178.69,178.63,2.8011]
[1734896691935,4.58,178.73,178.63,2.8011]
[1734896692334,4.58,178.73,178.57,1.7378]
[1734896692533,8.78231913,178.73,178.57,1.7378]
[1734896692730,35.22537534,178.71,178.57,1.7378]
[1734896693439,2.8011,178.64,178.57,1.7378]
[1734896693839,2.8011,178.64,178.59,2.8016]
[1734896695638,35.22537534,178.71,178.57,1.7378]
[1734896695840,2.8008,178.66,178.57,1.7378]
[1734896696431,19.89546571,178.73,178.57,1.7378]
[1734896697238,15.69296117,178.73,178.57,1.7378]
[1734896697438,4.58,178.73,178.57,1.7378]
[1734896697637,2.8005,178.68,178.63,2.8011]
[1734896697838,4.58,178.73,178.63,2.8011]
[1734896698039,4.4,178.72,178.57,1.7378]
[1734896698342,2.8005,178.68,178.57,1.7378]
[1734896698942,2.8005,178.68,178.63,2.8011]
[1734896699143,35.22537534,178.7,178.53,127.43984298]
[1734896699333,35.22537534,178.7,178.54,3.4184]
[1734896699538,35.22537534,178.64,178.53,92.21446764]
[1734896699741,2.8025,178.54,178.53,92.21446764]
[1734896700743,4.4,178.57,178.51,0.27215]
[1734896700744,2.8029,178.52,178.51,0.27215]
[1734896701939,4.4,178.58,178.51,0.27215]
[1734896702343,39.62537534,178.58,178.51,0.27215]
[1734896703245,2.8022,178.56,178.51,0.27215]
[1734896703548,39.62537534,178.58,178.51,0.27215]
[1734896703946,4.4,178.59,178.51,0.27215]
[1734896705246,21.77384269,178.72,178.51,0.27215]
[1734896705571,35.22537534,178.67,178.51,0.27215]
[1734896705754,35.22537534,178.67,178.55,2.8023]
[1734896706352,35.22537534,178.67,178.56,2.8022]
[1734896706953,35.22537534,178.67,178.57,2.8019]
[1734896707250,4.4,178.71,178.53,36.97367534]
[1734896707448,4.4,178.74,178.63,2.8011]
[1734896707643,35.22537534,178.75,178.63,2.8011]
[1734896707846,19.67651155,178.74,178.63,2.8011]
[1734896708250,15.47293377,178.74,178.63,2.8011]
[1734896708545,11.07293377,178.74,178.59,35.22537534]
[1734896708849,2.8,178.71,178.63,2.801]
[1734896709055,35.22537534,178.75,178.59,35.22537534]
[1734896709256,35.22537534,178.75,178.6,4.4]
[1734896709456,86.2986672,178.77,178.67,2.8004]
[1734896709956,86.2986672,178.77,178.62,35.22537534]
[1734896709957,86.2986672,178.77,178.63,1.7714]
[1734896710352,86.2986672,178.77,178.65,35.22537534]
[1734896710550,35.22537534,178.81,178.66,4.4]
[1734896710756,2.7989,178.78,178.72,2.7996]
[1734896710959,2.7989,178.78,178.68,35.22537534]
[1734896711162,4.4,178.83,178.68,35.22537534]
[1734896711890,2.7986,178.79,178.74,2.7994]
[1734896712179,35.22537534,178.84,178.67,1.6316]
[1734896712390,2.8004,178.68,178.63,2.801]
[1734896712679,39.62537534,178.72,178.57,3.3015]
[1734896712890,4.4,178.71,178.57,3.3015]
[1734896713185,35.22537534,178.69,178.57,3.3015]
[1734896713773,4.4,178.71,178.57,3.3015]
[1734896713963,4.4,178.71,178.58,35.22537534]
[1734896714163,4.4,178.75,178.61,35.22537534]
[1734896714461,35.22537534,178.74,178.58,4.4]
[1734896714853,35.22537534,178.74,178.59,35.22537534]
[1734896715051,39.62537534,178.81,178.67,2.8004]
[1734896715256,24.42442411,178.8,178.64,4.4]
[1734896715554,2.7998,178.72,178.66,2.8006]
[1734896715759,11.08808044,178.8,178.63,1.6009]
[1734896715760,39.62537534,178.75,178.63,1.6009]
[1734896715959,4.4,178.74,178.63,1.6009]
[1734896716153,2.7998,178.72,178.67,2.8005]
[1734896716457,4.4,178.76,178.63,1.6009]
[1734896716656,4.4,178.76,178.64,2.8009]
[1734896717262,2.8002,178.7,178.64,2.8009]
[1734896717563,4.4,178.76,178.65,2.8008]
[1734896717795,2.8002,178.7,178.65,2.8008]
[1734896718260,2.8002,178.69,178.65,2.8008]
[1734896718862,4.4,178.77,178.65,2.8008]
[1734896719063,4.4,178.77,178.66,4.4468]
[1734896719362,4.4,178.77,178.63,1.6009]
[1734896719760,4.4,178.77,178.63,4.402]
[1734896719961,4.4,178.77,178.61,4.4]
[1734896720265,2.8007,178.66,178.61,4.4]
[1734896720488,2.8007,178.66,178.59,35.22537534]
[1734896720666,2.8007,178.66,178.61,2.8013]
[1734896720967,35.22537534,178.75,178.59,39.44537534]
[1734896721470,2.8006,178.67,178.61,2.8014]
[1734896721854,4.4,178.77,178.62,35.22537534]
[1734896722563,35.22537534,178.81,178.65,35.22537534]
[1734896722759,39.44537534,178.81,178.66,5.8359]
[1734896723161,39.44537534,178.81,178.67,1.6202]
[1734896723391,2.7996,178.73,178.68,2.8003]
[1734896724064,4.22,178.81,178.68,35.22537534]
[1734896724261,22.32121105,178.91,178.71,35.22537534]
[1734896724262,35.22537534,178.87,178.71,35.22537534]
[1734896724466,2.799,178.77,178.72,7.0197]
[1734896725561,35.22537534,178.84,178.72,4.22]
[1734896725758,35.22537534,178.84,178.68,39.44537534]
[1734896725964,35.22537534,178.81,178.68,4.22]
[1734896726175,2.7996,178.74,178.69,2.8002]
[1734896726464,4.22,178.8,178.68,4.22]
[1734896726668,2.7989,178.78,178.73,2.7995]
[1734896726968,4.22,178.84,178.68,39.44537534]
[1734896727167,4.22,178.84,178.71,35.22537534]
[1734896727369,4.22,178.86,178.74,2.7993]
[1734896727667,35.22537534,178.87,178.74,2.7993]
[1734896727967,86.17441105,178.93,178.74,39.44537534]
[1734896727968,39.44537534,178.9,178.74,39.44537534]
[1734896728168,35.22537534,178.9,178.75,3.4938]
[1734896728363,39.44537534,178.9,178.75,3.4938]
[1734896728570,2.798,178.84,178.79,2.7986]
[1734896729969,39.44537534,178.9,178.76,1.701]
[1734896730570,4.22,178.89,178.79,2.7986]
[1734896730770,35.22537534,178.9,178.79,2.7986]
[1734896731064,35.22537534,178.9,178.76,1.701]
[1734896731065,35.22537534,178.96,178.8,35.22537534]
[1734896731263,5.11352113,178.95,178.8,35.22537534]
[1734896731460,4.22,178.95,178.83,35.22537534]
[1734896731660,4.22,178.95,178.84,5.979]
[1734896731869,4.22,178.97,178.84,5.979]
[1734896732063,4.22,178.97,178.85,1.67]
[1734896732463,35.22537534,178.99,178.85,1.67]
[1734896732661,4.22,178.99,178.86,35.22537534]
[1734896732859,2.7962,178.95,178.91,2.7967]
[1734896733060,39.44537534,179.02,178.86,35.22537534]
[1734896733567,2.7959,178.97,178.92,2.7965]
[1734896734468,35.22537534,179.02,178.92,2.7965]
[1734896734665,4.22,179.04,178.9,4.22]
[1734896734859,4.22,179.04,178.91,2.7967]
[1734896735266,2.796,178.97,178.91,2.7967]
[1734896735768,2.796,178.96,178.91,2.7967]
[1734896735968,4.22,178.98,178.85,1.67]
[1734896736172,4.22,178.97,178.85,1.67]
[1734896737476,2.7964,178.93,178.88,2.7972]
[1734896738368,2.7963,178.94,178.89,2.797]
[1734896739776,4.22,178.97,178.85,1.67]
[1734896740475,4.22,178.97,178.86,2.7975]
[1734896740969,2.7967,178.92,178.86,2.7975]
[1734896741175,2.7967,178.92,178.87,2.7972]
[1734896741485,2.7969,178.91,178.85,1.67]
[1734896741970,35.22537534,178.96,178.85,1.67]
[1734896742175,4.22,178.97,178.85,1.67]
[1734896742977,2.797,178.9,178.85,1.67]
[1734896743171,4.22,178.96,178.85,1.67]
[1734896743571,4.22,179.0,178.86,35.22537534]
[1734896743767,4.22,179.02,178.89,35.22537534]
[1734896743973,86.16698737,179.04,178.89,35.22537534]
[1734896744269,2.7956,178.99,178.94,2.7961]
[1734896744668,2.7956,178.99,178.92,35.22537534]
[1734896744869,2.7956,178.99,178.95,2.7961]
[1734896746475,2.7956,178.99,178.94,1.6327]
[1734896746777,35.22537534,179.05,178.89,35.22537534]
[1734896746972,35.22537534,179.02,178.88,4.22]
[1734896747177,35.22537534,179.02,178.89,2.797]
[1734896747378,2.7964,178.93,178.89,2.797]
[1734896747773,2.7964,178.93,178.88,4.22]
[1734896747981,2.7966,178.93,178.88,2.7971]
[1734896748275,4.22,179.0,178.86,35.22537534]
[1734896748476,2.7968,178.91,178.86,2.7974]
[1734896748672,35.22537534,178.99,178.85,3.3032]
[1734896749084,2.797,178.9,178.85,6.1007]
[1734896750377,35.22537534,178.99,178.85,3.3032]
[1734896750769,2.7972,178.89,178.85,6.1009]
[1734896751577,35.22537534,178.99,178.85,3.3032]
[1734896751879,4.04,179.0,178.86,35.22537534]
[1734896752080,39.26537534,179.02,178.92,2.7965]
[1734896752677,4.04,179.02,178.89,35.22537534]
[1734896752877,4.04,179.03,178.89,35.22537534]
[1734896753383,4.04,179.03,178.92,2.7966]
[1734896754081,4.04,179.03,178.89,35.22537534]
[1734896754283,2.796,178.96,178.89,35.22537534]
[1734896754685,2.796,178.96,178.92,2.7966]
[1734896754877,4.04,179.03,178.89,35.22537534]
[1734896755281,2.7963,178.95,178.9,2.7969]
[1734896755579,4.04,179.03,178.89,35.22537534]
[1734896755777,4.04,179.07,178.96,2.7959]
[1734896755982,121.38624493,179.08,178.94,4.04]
[1734896756184,125.42624493,179.08,178.95,3.2554]
[1734896756384,125.42624493,179.08,178.83,93.38537534]
[1734896756385,125.42624493,179.08,178.96,2.7958]
[1734896756582,35.22537534,179.02,178.87,4.04]
[1734896756784,35.22537534,178.98,178.84,5.0364]
[1734896757083,39.26537534,178.98,178.88,2.7971]
[1734896757280,39.26537534,178.98,178.84,5.0364]
[1734896757485,2.7961,178.95,178.9,2.7968]
[1734896757984,2.7963,178.94,178.9,2.7968]
[1734896758184,4.04,178.98,178.91,2.7967]
[1734896758385,35.22537534,179.01,178.91,2.7967]
[1734896758586,2.7961,178.96,178.91,2.7967]
[1734896758788,35.22537534,179.01,178.91,2.7967]
[1734896759683,35.22537534,179.01,178.89,4.04]
[1734896759880,35.22537534,178.98,178.85,4.04]
[1734896760389,35.22537534,178.98,178.87,2.7973]
[1734896760589,35.22537534,178.98,178.85,4.04]
[1734896761487,2.7966,178.93,178.89,2.7971]
[1734896761692,35.22537534,178.98,178.85,4.04]
[1734896762088,35.22537534,178.98,178.84,5.0364]
[1734896762291,35.22537534,178.98,178.84,9.0764]
[1734896763189,2.7966,178.92,178.88,2.7971]
[1734896763386,35.22537534,179.01,178.84,5.0364]
[1734896763583,39.26537534,179.04,178.87,35.22537534]
[1734896763786,35.22537534,179.04,178.87,35.22537534]
[1734896764191,35.22537534,178.98,178.83,92.30007821]
[1734896764394,35.22537534,178.95,178.84,2.7977]
[1734896764597,4.04,178.94,178.84,2.7977]
[1734896764993,2.7972,178.89,178.84,2.7977]
[1734896765193,4.04,178.94,178.83,92.30007821]
[1734896765393,4.04,178.94,178.82,3.3909]
[1734896765791,2.797,178.9,178.86,2.7975]
[1734896765991,4.04,178.94,178.82,3.3909]
[1734896766388,35.22537534,178.92,178.79,92.30007821]
[1734896766592,35.22537534,178.86,178.79,92.30007821]
[1734896766789,35.22537534,178.83,178.79,92.30007821]
[1734896766994,2.7985,178.8,178.79,92.30007821]
[1734896767594,2.7985,178.8,178.72,1.644]
[1734896767794,4.04,178.85,178.72,1.644]
[1734896767994,4.04,178.85,178.74,35.22537534]
[1734896768196,4.04,178.9,178.74,35.22537534]
[1734896768396,4.04,178.9,178.77,35.22537534]
[1734896768601,4.04,178.9,178.78,4.04]
[1734896769201,4.04,178.93,178.8,35.22537534]
[1734896769401,4.04,178.93,178.81,1.6136]
[1734896770005,39.26537534,178.95,178.81,1.6136]
[1734896770195,2.7969,178.91,178.85,2.7975]
[1734896770999,2.7966,178.92,178.81,1.6136]
[1734896771200,4.04,178.95,178.81,1.6136]
[1734896771399,35.22537534,179.01,178.83,35.22537534]
[1734896771599,4.04,179.05,178.91,35.22537534]
[1734896771899,15.15214687,179.05,178.92,4.04]
[1734896772100,19.34810208,179.05,178.92,6.8366]
[1734896772295,4.04,179.05,178.92,4.04]
[1734896772495,11.11214687,179.06,178.94,35.22537534]
[1734896772799,22.3053712,179.07,178.95,1.7062]
[1734896773197,22.3053712,179.07,178.97,2.7957]
[1734896773198,2.7949,179.03,178.97,2.7957]
[1734896773501,22.3053712,179.07,178.98,4.04]
[1734896773798,86.16086959,179.08,178.98,4.04]
[1734896774003,4.04,179.11,179.0,2.7953]
[1734896774298,4.1935974,179.12,179.0,35.22537534]
[1734896774496,22.3053712,179.2,179.09,35.22537534]
[1734896774702,37.62804377,179.2,179.1,4.04]
[1734896775001,2.793,179.16,179.1,4.04]
[1734896775197,2.793,179.16,179.09,35.22537534]
[1734896775397,2.793,179.16,179.09,39.26537534]
[1734896775599,2.793,179.16,179.09,42.05927534]
[1734896775799,2.7927,179.17,179.09,42.05927534]
[1734896776002,4.04,179.24,179.09,39.26537534]
[1734896776197,8.23100068,179.24,179.1,2.7938]
[1734896776397,19.34214536,179.24,179.1,2.7938]
[1734896776601,19.34214536,179.24,179.12,35.22537534]
[1734896776802,15.15114468,179.24,179.12,35.22537534]
[1734896777001,4.04,179.24,179.12,35.22537534]
[1734896777199,4.04,179.24,179.09,35.22537534]
[1734896777398,19.34192178,179.24,179.1,4.04]
[1734896777794,19.34181788,179.24,179.1,4.04]
[1734896778101,15.15114468,179.24,179.1,4.04]
[1734896778300,35.22537534,179.19,179.04,5.0027]
[1734896778599,4.04,179.18,179.04,9.0427]
[1734896778805,4.04,179.18,179.05,4.04]
[1734896779000,2.7937,179.11,179.05,4.04]
[1734896779203,35.22537534,179.16,179.05,4.04]
[1734896779597,4.04,179.18,179.05,4.04]
[1734896780003,35.22537534,179.19,179.05,4.04]
[1734896780399,2.7933,179.14,179.07,2.7942]
[1734896780904,35.22537534,179.16,179.05,3.9]
[1734896782711,35.22537534,179.16,179.04,3.3547]
[1734896782906,35.22537534,179.16,179.01,3.9]
[1734896783204,35.22537534,179.13,178.99,3.9]
[1734896783409,39.12537534,179.13,178.99,3.9]
[1734896783810,2.7944,179.06,178.99,6.6954]
[1734896784213,2.7944,179.06,178.99,3.9]
[1734896784415,39.12537534,179.13,178.99,3.9]
[1734896784614,2.7946,179.05,178.99,3.9]
[1734896784804,39.12537534,179.13,178.99,3.9]
[1734896785005,2.7943,179.07,178.99,3.9]
[1734896785210,35.22537534,179.1,178.99,3.9]
[1734896785910,39.12537534,179.13,178.99,3.9]
[1734896786104,39.12537534,179.13,178.99,39.12537534]
[1734896786311,2.794,179.09,178.99,39.12537534]
[1734896787008,2.7941,179.08,179.02,2.795]
[1734896787508,2.7938,179.1,179.04,2.7947]
[1734896787706,39.12537534,179.16,178.99,39.12537534]
[1734896788312,2.794,179.09,179.02,2.7949]
[1734896788731,39.12537534,179.16,179.02,2.7949]
[1734896788913,2.7941,179.09,179.02,2.7949]
[1734896790113,2.7944,179.06,179.0,2.7952]
[1734896790317,3.9,179.1,178.98,3.5134]
[1734896790517,39.12537534,179.1,178.98,3.5134]
[1734896791109,39.12537534,179.1,178.95,3.9]
[1734896791419,35.22537534,179.07,178.95,3.9]
[1734896791613,2.7951,179.02,178.93,3.3092]
[1734896791817,2.7951,179.02,178.94,3.9]
[1734896792013,3.9,179.1,178.94,5.5253]
[1734896792220,2.7949,179.03,178.97,2.7957]
[1734896792919,2.7951,179.02,178.97,2.7957]
[1734896793815,35.22537534,179.07,178.94,5.5253]
[1734896794216,35.22537534,179.04,178.93,3.3092]
[1734896794418,35.22537534,179.01,178.88,3.9]
[1734896794616,39.12537534,179.01,178.88,3.9]
[1734896794820,2.7964,178.94,178.89,2.797]
[1734896795516,39.12537534,179.01,178.88,3.9]
[1734896795817,39.12537534,179.01,178.84,7.3243]
[1734896796027,35.22537534,178.98,178.84,3.4243]
[1734896796315,35.22537534,178.98,178.84,7.3243]
[1734896796620,2.7963,178.94,178.84,10.1221]
[1734896796821,35.22537534,178.98,178.84,10.1221]
[1734896797016,35.22537534,178.98,178.84,7.3243]
[1734896797220,35.22537534,178.98,178.84,5.5924]
[1734896797818,2.7969,178.91,178.86,2.7975]
[1734896798322,35.22537534,178.98,178.87,2.7973]
[1734896798523,35.22537534,178.98,178.84,5.5924]
[1734896799122,2.7963,178.94,178.86,2.7975]
[1734896799321,35.22537534,178.98,178.86,2.7975]
[1734896800022,2.7967,178.92,178.86,2.7975]
[1734896800224,2.7967,178.92,178.87,2.7974]
[1734896801025,2.7967,178.92,178.84,5.5924]
[1734896801223,2.7965,178.93,178.88,2.7971]
[1734896801423,2.7965,178.93,178.84,5.5924]
[1734896801626,3.9,178.98,178.89,2.7969]
[1734896801925,16.82,179.12,178.89,2.7969]
[1734896801926,3.9,179.03,178.89,35.22537534]
[1734896802115,39.12537534,179.04,178.9,7.193]
[1734896802316,2.7959,178.97,178.9,7.193]
[1734896802519,39.12537534,179.04,178.9,7.193]
[1734896804121,2.7961,178.96,178.91,2.7967]
[1734896804322,35.22537534,179.01,178.9,5.5377]
[1734896805621,2.7964,178.94,178.9,5.5377]
[1734896805827,35.22537534,179.01,178.86,3.9]
[1734896806122,35.22537534,178.98,178.86,3.9]
[1734896806327,3.9,178.97,178.86,6.6975]
[1734896807023,3.9,178.97,178.86,3.9]
[1734896807423,2.7963,178.94,178.86,39.12537534]
[1734896807822,39.12537534,179.01,178.86,39.12537534]
[1734896808029,2.7965,178.93,178.86,39.12537534]
[1734896808230,39.12537534,179.01,178.86,39.12537534]
[1734896808231,39.12537534,179.01,178.86,3.9]
[1734896808419,2.7967,178.92,178.87,2.7972]
[1734896808624,2.7967,178.92,178.86,3.9]
[1734896808924,39.12537534,179.01,178.86,3.9]
[1734896809426,39.12537534,179.01,178.89,2.7969]
[1734896810127,39.12537534,179.01,178.86,3.9]
[1734896810427,2.7963,178.94,178.9,2.7969]
[1734896812022,2.7963,178.94,178.86,39.12537534]
[1734896812228,39.12537534,179.01,178.86,3.9]
[1734896812429,35.22537534,178.98,178.86,3.9]
[1734896812631,2.7963,178.95,178.86,3.9]
[1734896812926,39.12537534,179.01,178.86,3.9]
[1734896814932,5.5895,179.04,178.87,35.22537534]
[1734896814933,35.22537534,179.04,178.87,35.22537534]
[1734896815120,3.68,179.03,178.87,35.22537534]
[1734896815324,35.22537534,179.0,178.86,3.9]
[1734896815520,35.22537534,178.97,178.85,1.7429]
[1734896815730,3.68,178.96,178.85,1.7429]
[1734896816130,2.7974,178.88,178.85,1.7429]
[1734896816530,3.68,178.96,178.85,1.7429]
[1734896817236,35.22537534,178.97,178.85,1.7429]
[1734896817435,3.68,178.97,178.85,1.7429]
[1734896817734,3.68,178.97,178.88,2.7971]
[1734896818832,2.7967,178.92,178.87,2.7974]
[1734896819033,2.7967,178.92,178.85,1.7429]
[1734896819431,2.7965,178.93,178.85,1.7429]
[1734896819832,38.90537534,179.04,178.9,35.22537534]
[1734896820058,38.90537534,179.04,178.91,3.68]
[1734896820333,35.22537534,179.01,178.87,3.68]
[1734896821025,2.7967,178.92,178.88,2.7972]
[1734896821230,3.68,178.98,178.87,3.68]
[1734896821435,3.68,178.98,178.87,38.90537534]
[1734896821736,38.90537534,178.98,178.85,1.7429]
[1734896822234,3.68,178.98,178.84,1.6924]
[1734896822432,21.62090983,178.92,178.76,3.3825]
[1734896822633,3.68,178.91,178.76,3.3825]
[1734896822831,2.798,178.83,178.79,2.7985]
[1734896823042,3.68,178.91,178.76,3.3825]
[1734896823233,3.68,178.91,178.78,21.62090983]
[1734896823936,2.7975,178.87,178.82,2.798]
[1734896824127,2.7975,178.87,178.8,3.68]
[1734896824332,3.68,178.91,178.8,3.68]
[1734896824534,3.68,178.91,178.82,2.7981]
[1734896825140,2.7971,178.89,178.83,2.798]
[1734896825439,2.7971,178.89,178.8,3.68]
[1734896825635,86.19383264,178.98,178.82,35.14393338]
[1734896825934,86.19383264,178.98,178.83,1.7678]
[1734896826134,121.33776602,178.98,178.83,1.7678]
[1734896826344,2.7972,178.89,178.85,2.7975]
[1734896827336,125.01776602,178.98,178.85,3.68]
[1734896827544,125.01776602,178.98,178.86,1.6122]
[1734896828230,2.7968,178.91,178.87,2.7973]
[1734896828437,125.01776602,178.98,178.86,1.6122]
[1734896828742,125.01776602,178.98,178.85,3.68]
[1734896828743,35.14393338,178.95,178.83,5.4478]
[1734896828942,35.14393338,178.95,178.84,2.7977]
[1734896829443,2.7967,178.92,178.85,2.7976]
[1734896829642,125.01776602,178.98,178.83,5.4478]
[1734896830042,3.68,178.97,178.83,5.4478]
[1734896830946,2.7967,178.92,178.88,2.7972]
[1734896831142,121.33776602,178.98,178.83,5.4478]
[1734896831348,35.14393338,179.04,178.88,35.14393338]
[1734896831540,38.82393338,179.04,178.89,7.1084]
[1734896831943,2.7954,179.0,178.92,2.7964]
[1734896832143,11.11589684,179.03,178.92,2.7964]
[1734896832348,15.31151136,179.03,178.92,2.7964]
[1734896832547,2.7961,178.96,178.92,2.7964]
[1734896833238,2.7961,178.96,178.89,7.1084]
[1734896833439,2.7957,178.98,178.89,7.1084]
[1734896833750,38.82393338,179.04,178.89,7.1084]
[1734896833944,2.7959,178.97,178.89,7.1084]
[1734896834153,38.82393338,179.04,178.89,7.1084]
[1734896834341,15.32054535,179.03,178.89,7.1084]
[1734896835643,2.7955,178.99,178.96,2.7959]
[1734896836038,3.68,179.05,178.96,2.7959]
[1734896836239,3.68,179.05,178.89,7.1084]
[1734896836240,22.3053712,179.13,178.95,3.68]
[1734896836450,35.14393338,179.12,178.97,35.14393338]
[1734896836745,14.82446776,179.11,178.98,3.2942]
[1734896836948,3.68,179.11,178.98,3.2942]
[1734896837157,2.7937,179.11,179.07,2.7942]
[1734896837451,22.3053712,179.16,179.04,3.68]
[1734896837452,15.33782851,179.15,179.04,3.68]
[1734896837643,2.7933,179.14,179.05,3.68]
[1734896837843,11.14446776,179.15,179.08,2.7941]
[1734896838050,22.3053712,179.16,179.08,2.7941]
[1734896838353,22.3053712,179.16,179.09,2.7939]
[1734896838541,92.90148481,179.18,179.09,2.7939]
[1734896838542,3.68,179.18,179.09,2.7939]
[1734896838849,2.7938,179.11,179.03,35.14393338]
[1734896839048,3.68,179.13,179.03,2.7949]
[1734896839253,3.68,179.13,178.99,1.6702]
[1734896839553,2.7945,179.06,178.99,1.6702]
[1734896839949,35.14393338,179.11,178.89,192.04184138]
[1734896840250,35.14393338,179.11,178.94,38.92393338]
[1734896840643,3.68,179.13,179.0,2.7952]
[1734896840842,18.98575431,179.13,179.0,2.7952]
[1734896841041,18.98575431,179.13,178.97,35.14393338]
[1734896841243,2.7951,179.02,178.95,3.78]
[1734896841641,3.78,179.07,178.95,3.78]
[1734896842141,3.78,179.07,178.93,3.4614]
[1734896842851,35.14393338,179.05,178.88,38.92393338]
[1734896843055,2.7958,178.97,178.92,2.7965]
[1734896843755,35.14393338,179.05,178.93,2.7963]
[1734896844551,35.14393338,179.05,178.88,38.41373338]
[1734896844552,2.7962,178.95,178.88,38.41373338]
[1734896844850,3.78,179.01,178.89,3.78]
[1734896845650,2.7961,178.95,178.89,3.78]
[1734896846450,2.7961,178.95,178.9,2.7968]
[1734896846648,3.78,179.01,178.89,3.78]
[1734896846849,2.7957,178.98,178.91,35.14393338]
[1734896847748,3.78,179.03,178.91,35.14393338]
[1734896848055,2.7951,179.02,178.97,2.7958]
[1734896848348,11.11998932,179.09,178.94,35.14393338]
[1734896848549,14.89998932,179.09,178.97,35.14393338]
[1734896848854,14.89998932,179.09,178.95,3.78]
[1734896848855,3.78,179.09,178.95,5.5033]
[1734896849053,2.7955,178.99,178.95,2.7961]
[1734896849453,2.7954,179.0,178.95,2.7961]
[1734896851151,2.7954,179.0,178.96,2.7959]
[1734896851751,35.14393338,179.08,178.91,3.78]
[1734896851752,3.78,179.03,178.91,35.14393338]
[1734896852247,2.7958,178.98,178.93,2.7963]
[1734896852644,3.78,179.03,178.89,1.7586]
[1734896852848,35.14393338,179.02,178.88,3.2698]
[1734896853050,35.14393338,178.99,178.82,1.7172]
[1734896853256,35.14393338,178.99,178.83,3.78]
[1734896853752,35.14393338,178.99,178.82,40.20803338]